Cogmind - Beta 12 @@@ ROGUE MODE // 2023.12.17 @ 06:28:43 Player: puppuppit Result: Destroyed by G-34 Mercenary with Small Laser Performance ------------- Evolutions (0) 0 Regions Visited (4) 800 Robots Destroyed (11) 55 Value Destroyed (102) 102 Prototype IDs (0) 0 Alien Tech Used (0) 0 Bonus (-1700) -1700 TOTAL SCORE: -743 Bonus ------- Friendly Fire -1700 Cogmind --------- Core Integrity 0/250 Matter 300/300 Energy 100/100 System Corruption 17% Temperature Cool (6) Movement Core (50) Location -9/Mines Parts ------- > --- POWER (1) -------- (None) > --- PROPULSION (2) --- (None) > --- UTILITY (2) ------ (None) > --- WEAPON (2) ------- (None) > --- INVENTORY (5) ---- Flight Unit Compact Matter Pod (150) Compact Matter Pod (150) Improved Light Armor Plating Light Cannon Peak State ------------ > --- POWER ------------ (None) > --- PROPULSION ------- Airjet Flight Unit > --- UTILITY ---------- Targeting Computer Targeting Computer > --- WEAPON ----------- Light Cannon Light Cannon > --- INVENTORY -------- Carbon-fiber Leg Compact Matter Pod Compact Matter Pod Light Armor Plating Light Cannon [Rating: 9] Favorites ----------- Power Light Ion Engine Engine Light Ion Engine Propulsion Flight Unit Wheel Compact Wheel Hover Unit Airjet Flight Unit Flight Unit Utility Targeting Computer Storage Small Storage Unit Processor Targeting Computer Weapon Light Cannon Ballistic Gun Light Assault Rifle Ballistic Cannon Light Cannon Build | -11 -10 -10 -10 -9 ------- Run | Jun Mat Min Exi Min Slots Evolved . | . . . . . Power . | . . . . . Propulsion . | . . . . . Utility . | . . . . . Weapon . | . . . . . Parts Attached 14 | 6 5 3 . . Power 1 | 1 . . . . Engine 1 | 1 . . . . Core . | . . . . . Reactor . | . . . . . Propulsion 5 | 2 . 3 . . Treads . | . . . . . Leg . | . . . . . Wheel 2 | 2 . . . . Hover 1 | . . 1 . . Flight 2 | . . 2 . . Utility 3 | 1 2 . . . Device . | . . . . . Storage 1 | 1 . . . . Processor 2 | . 2 . . . Hackware . | . . . . . Protection . | . . . . . Artifact . | . . . . . Weapon 5 | 2 3 . . . Energy Gun . | . . . . . Energy Cannon . | . . . . . Ballistic Gun 3 | 2 1 . . . Ballistic Cannon 2 | . 2 . . . Launcher . | . . . . . Special Weapon . | . . . . . Impact Weapon . | . . . . . Slashing Weapon . | . . . . . Piercing Weapon . | . . . . . Special Melee Weapon . | . . . . . Unidentified Prototypes . | . . . . . Parts Lost 8 | . . 2 . 6 Power 1 | . . 1 . . Propulsion 3 | . . 1 . 2 Utility 2 | . . . . 2 Weapon 2 | . . . . 2 Highest Loss Streak 6 | . . 2 . 6 To Critical Strikes . | . . . . . Average Slot Usage (%) 85 | . 97 92 85 76 Engine 3 | . 14 7 . . Wheel 7 | . 28 15 . . Hover 7 | . . 2 14 11 Flight 11 | . . 10 14 11 Processor 26 | . 19 28 28 24 Ballistic Cannon 27 | . 11 28 28 27 Naked Turns 6 | . . . . 6 Heaviest Build 10 | 10 10 9 6 6 Greatest Support 26 | 26 26 26 8 8 Greatest Overweight (x) 1 | . . . . 1 Average Overweight (x) . | . . . . . Largest Inventory Capacity 8 | 8 8 5 5 5 Average Capacity 5 | 7 5 5 5 5 Most Carried 5 | 1 4 5 5 5 Average Carried 4 | . 2 4 5 5 Final Capacity 8 | 8 5 5 5 5 Final Carried 5 | 1 4 5 5 5 Class Distribution -------------------- 100% | Mutant Dominant Class ---------------- Mutant | -10/Materials Mutant | -10/Mines Mutant | -10/Exiles Mutant | -9/Mines Resources | -11 -10 -10 -10 -9 ----------- Run | Jun Mat Min Exi Min Matter Collected 540 | 150 . 301 . 89 Remotely . | . . . . . Salvage Created 251 | . . 57 52 142 Parts 18 | . . 7 2 9 Haulers Intercepted . | . . . . . Recyclers Shooed . | . . . . . Parts Field Recycled . | . . . . . Retrieved Matter . | . . . . . Parts Self-Destructed . | . . . . . Prevented . | . . . . . Kills | -11 -10 -10 -10 -9 ------- Run | Jun Mat Min Exi Min Combat Hostiles Destroyed 7 | . . 6 . 1 Melee 1 | . . . . 1 Cannons 6 | . . 6 . . Classes Destroyed 4 | . . 1 1 2 Worker 1 | . . . . 1 Tunneler 1 | . . . . 1 Swarmer 6 | . . 6 . . Grunt 1 | . . . . 1 Thug 1 | . . . 1 . Best Kill Streak 3 | . . 3 . 1 Combat Bots Only 3 | . . 3 . 1 Max Kills in Single Turn 1 | . . 1 1 1 Gunslinging . | . . . . . Exploded . | . . . . . Melee 1 | . . . . 1 Uniques/NPCs Destroyed 1 | . . . . 1 YI-UF0 (-9/Mines) Combat | -11 -10 -10 -10 -9 -------- Run | Jun Mat Min Exi Min Damage Taken 676 | . . 188 . 488 Core 256 | . . 35 . 221 Absorbed by Shields . | . . . . . Core Remaining (%) 100 | 100 . . . . Volleys Fired 34 | . . 14 3 17 Largest 2 | . . 2 2 2 Hottest 70 | . . 70 70 70 Shots Fired 66 | . . 28 6 32 Gun . | . . . . . Cannon 66 | . . 28 6 32 Launcher . | . . . . . Special . | . . . . . Kinetic 66 | . . 28 6 32 Thermal . | . . . . . Explosive . | . . . . . Electromagnetic . | . . . . . Robot Hit Streak 5 | . . 4 2 5 Robot Miss Streak 3 | . . 3 1 3 Penetration Max . | . . . . . Secondary Targets . | . . . . . Shots Hit Robots 38 | . . 14 3 21 Core Hits 25 | . . 5 3 17 Critical Kills . | . . . . . Critical Parts Destroyed . | . . . . . Critical Strikes 2 | . . . . 2 Blast 2 | . . . . 2 Melee Attacks . | . . . . . Impact . | . . . . . Slashing . | . . . . . Piercing . | . . . . . Sneak Attacks . | . . . . . Combat Hostiles . | . . . . . Follow-up Attacks . | . . . . . Damage Inflicted 911 | . . 244 59 608 Guns . | . . . . . Cannons 684 | . . 244 59 381 Explosions . | . . . . . Melee . | . . . . . Ramming 227 | . . . . 227 Kinetic 684 | . . 244 59 381 Thermal . | . . . . . Explosive . | . . . . . Electromagnetic . | . . . . . Impact . | . . . . . Slashing . | . . . . . Piercing . | . . . . . Highest Corruption 17 | . . . . 17 Average Corruption 4 | . . . . 4 Corruption Purged . | . . . . . Corruption Blocked . | . . . . . Effects 4 | . . . . 4 Message Errors 3 | . . . . 3 Matter Fused 1 | . . . . 1 Overload Shots . | . . . . . Overflow Damage 32 | . . 25 . 7 Projectiles 32 | . . 25 . 7 Explosions . | . . . . . Melee . | . . . . . Knockbacks 11 | . . 1 1 9 Impact . | . . . . . Kinetic 11 | . . 1 1 9 Secondary . | . . . . . Self-Inflicted Damage 97 | . . . . 97 Shots . | . . . . . Rammed 74 | . . . . 74 Targets Rammed 74 | . . . . 74 Kicked . | . . . . . Crushed . | . . . . . Highest Temperature 45 | . . 45 . 22 Average Temperature 17 | . . 17 . 21 Received Heat Transfer 198 | . . . . 198 Siege Activations . | . . . . . Robots Corrupted . | . . . . . Combat Hostiles . | . . . . . Parts Fried . | . . . . . Impact Corruptions . | . . . . . Robots Melted . | . . . . . Combat Hostiles . | . . . . . Parts Melted . | . . . . . Heat Transferred . | . . . . . Parts Sabotaged . | . . . . . Parts Stolen . | . . . . . Parts Stripped . | . . . . . Power Chain Reactions . | . . . . . Missiles Intercepted . | . . . . . Alert | -11 -10 -10 -10 -9 ------- Run | Jun Mat Min Exi Min Peak Influence 120 | . . 120 . 20 Initial . | . . . . . Average 32 | . . 59 . 7 Maximum Alert Level . | . . . . . Low Security (%) 100 | 100 100 100 . 100 Level 1 . | . . . . . Level 2 . | . . . . . Level 3 . | . . . . . Level 4 . | . . . . . Level 5 . | . . . . . High Security . | . . . . . Max Security . | . . . . . Squads Dispatched 1 | . . 1 . . Investigation 1 | . . 1 . . Extermination . | . . . . . Reinforcement . | . . . . . Assault . | . . . . . Garrison . | . . . . . Intercept . | . . . . . Searches Triggered . | . . . . . Construction Impeded . | . . . . . Haulers Reinforced . | . . . . . Active Scanning Responses . | . . . . . Cargo Convoy Interrupts . | . . . . . Stealth | -11 -10 -10 -10 -9 --------- Run | Jun Mat Min Exi Min Distress Signals . | . . . . . Communications Jammed . | . . . . . Distress Signals . | . . . . . Times Spotted 9 | . . 6 . 3 Peak Tracking Total 3 | . . 3 . 3 Tactical Retreats . | . . . . . Traps | -11 -10 -10 -10 -9 ------- Run | Jun Mat Min Exi Min Traps Triggered . | . . . . . Indirectly . | . . . . . Trap Hack Attempts . | . . . . . Triggered . | . . . . . Disarmed . | . . . . . Reprogrammed . | . . . . . Reused . | . . . . . Traps Extracted . | . . . . . Installed . | . . . . . Triggered . | . . . . . Machines | -11 -10 -10 -10 -9 ---------- Run | Jun Mat Min Exi Min Machines Disabled . | . . . . . Max in Single Turn . | . . . . . Machines Repaired . | . . . . . Machines Sabotaged . | . . . . . Overloaded Fab Kills . | . . . . . Hacking | -11 -10 -10 -10 -9 --------- Run | Jun Mat Min Exi Min Machines Accessed 3 | . 1 2 . . Terminals 1 | . 1 . . . Fabricators . | . . . . . Repair Stations . | . . . . . Recycling Units . | . . . . . Scanalyzers . | . . . . . Garrison Access . | . . . . . Total Hacks 4 | . 2 2 . . Successful 2 | . . 2 . . Failed 2 | . 2 . . . Catastrophic . | . . . . . Database Lockouts . | . . . . . Manual . | . . . . . Terminals 2 | . 2 . . . Fabricators . | . . . . . Repair Stations . | . . . . . Recycling Units . | . . . . . Scanalyzers . | . . . . . Garrison Access . | . . . . . Terminal Hacks 2 | . . 2 . . Open Door 2 | . . 2 . . Fabricator Hacks . | . . . . . Repair Station Hacks . | . . . . . Recycling Unit Hacks . | . . . . . Scanalyzer . | . . . . . Garrison Access Hacks . | . . . . . Unauthorized Hacks . | . . . . . Terminals . | . . . . . Fabricators . | . . . . . Repair Stations . | . . . . . Recycling Units . | . . . . . Scanalyzers . | . . . . . Garrison Access . | . . . . . Data Cores Recovered . | . . . . . Used . | . . . . . Hacking Detections 1 | . 1 . . . Full Trace Events . | . . . . . Feedback Events . | . . . . . Feedback Blocked . | . . . . . Robot Schematics Acquired . | . . . . . Robots Built . | . . . . . Authchips . | . . . . . Time . | . . . . . Total Robot Build Rating . | . . . . . Part Schematics Acquired . | . . . . . Parts Built . | . . . . . Authchips . | . . . . . Time . | . . . . . Total Part Build Rating . | . . . . . Parts Repaired . | . . . . . Time . | . . . . . Parts Recycled . | . . . . . Recycled Matter . | . . . . . Retrieved Matter . | . . . . . Retrieved Components . | . . . . . Parts Scanalyzed . | . . . . . Part Schematics Acquired . | . . . . . Parts Damaged . | . . . . . Bothacking | -11 -10 -10 -10 -9 ------------ Run | Jun Mat Min Exi Min Used RIF Installer . | . . . . . Robots Hacked . | . . . . . Non-combat . | . . . . . Combat . | . . . . . Robot Hacks Applied . | . . . . . Relay Couplers Released . | . . . . . Fabnet Peak Effective % . | . . . . . Robots Rewired . | . . . . . Allies Hacked . | . . . . . Hacks Repelled . | . . . . . Allies | -11 -10 -10 -10 -9 -------- Run | Jun Mat Min Exi Min Total Allies 1 | . . 1 . . Largest Group 1 | . . 1 1 . Highest-Rated Group 31 | . . 31 31 . Highest-Rated Ally 31 | . . 31 31 . Total Orders . | . . . . . Ally Attacks . | . . . . . Total Damage . | . . . . . Kills . | . . . . . Allies Corrupted . | . . . . . Allies Melted . | . . . . . Intel | -11 -10 -10 -10 -9 ------- Run | Jun Mat Min Exi Min Robot Analysis Total . | . . . . . Derelict Logs Recovered 2 | . . 1 . 1 Drone Launches . | . . . . . Drone Recoveries . | . . . . . Exploration | -11 -10 -10 -10 -9 ------------- Run | Jun Mat Min Exi Min Turns Passed 1065 | 46 44 424 224 327 Spaces Moved 1353 | 41 37 582 358 335 Core 10 | 3 . . . 7 Treads . | . . . . . Legs . | . . . . . Wheels 278 | 38 37 203 . . Hover 749 | . . 63 358 328 Flight 316 | . . 316 . . Fastest Speed 37 | 50 90 37 60 60 Average Speed 61 | 88 90 57 60 60 Slowest Speed 100 | 100 90 90 60 100 Overloaded Moves . | . . . . . Propulsion Burnouts . | . . . . . Robots Hopped 7 | . . 7 . . Cave-ins Triggered . | . . . . . Exploration Rate (%) 52 | 3 14 92 87 68 Regions Visited 4 Branch Regions 3 Pre-discovered Areas 2 | . . 1 . 1 Known Exits Taken . | . . . . . Unknown Exits Taken 4 | 1 1 1 1 . Scrap Searched 2 | . . 1 . 1 Spaces Dug . | . . . . . Terrain Destroyed . | . . . . . Melee . | . . . . . Projectile . | . . . . . AOE . | . . . . . Terrain Rammed . | . . . . . Walls Destroyed . | . . . . . Machines Disabled . | . . . . . Actions | -11 -10 -10 -10 -9 --------- Run | Jun Mat Min Exi Min Total 1517 | 47 47 637 360 426 Wait 29 | . . 29 . . Move 1335 | 40 36 567 357 335 Hop 7 | . . 7 . . Pick Up 12 | 1 2 9 . . Fast Attach 11 | 6 4 1 . . Attach 3 | . 1 2 . . Detach 2 | . 2 . . . Swap . | . . . . . Drop 10 | . 2 8 . . Fire 34 | . . 14 3 17 Melee . | . . . . . Ram 74 | . . . . 74 Kick . | . . . . . Crush . | . . . . . Escape Stasis . | . . . . . Rewire . | . . . . . Trap . | . . . . . Miscellaneous . | . . . . . Route ------- -11/Junkyard -10/Materials -10/Mines (discovered 2 exits: [*Mat] / *Exi) -10/Exiles -9/Mines (discovered 1 exit: [*Mat]) History --------- Turn | Location | Event 18 | -11/Junkyard | Discovered new exit (range 15) 47 | -11/Junkyard | Entered Materials 70 | -10/Materials | Discovered new exit (range 16) 91 | -10/Materials | Entered Mines 102 | -10/Mines | Met a Derelict bent on vengeance 294 | -10/Mines | Discovered new exit (range 6) 302 | -10/Mines | Build established: Mutant 367 | -10/Mines | Learned location of Zion (-7) 374 | -10/Mines | A weapon hastily lodged in a ceiling crevice suddenly fell to the ground 385 | -10/Mines | Deemed a non-threat by the Exiles lab entrance 400 | -10/Mines | Received a Mining Laser from a helpful Derelict 412 | -10/Mines | Found the Drone Emporium 453 | -10/Mines | Met a Derelict shopkeep closing up shop 498 | -10/Mines | Discovered new exit (range 5) 515 | -10/Mines | Entered Exiles 515 | -10/Exiles | Found Exiles lab abandoned 515 | -10/Exiles | Accompanied by 1 ally 734 | -10/Exiles | Discovered new exit (range 10) 739 | -10/Exiles | Entered Mines 751 | -9/Mines | Discovered new exit (range 15) 774 | -9/Mines | Learned Materials terminal intel 846 | -9/Mines | YI-UF0 nonchalantly dropped a Grenade Launcher on the ground 897 | -9/Mines | Destroyed YI-UF0 1019 | -9/Mines | System corruption reached 10% 1027 | -9/Mines | Learned location of Storage (-7) 1040 | -9/Mines | Core integrity fell below 50% 1061 | -9/Mines | Core integrity fell below 20% 1066 | -9/Mines | Destroyed by G-34 Mercenary with Small Laser Last Messages --------------- 01037_ Lgt. Cannon broken. 01037_ Destabilizing: Short circuit. 01038_ Slammed into G-34 Mercenary. 01038_ Lgt. Cannon broken. 01038_ Destabilizing: Short circuit. 01039_ Slammed into G-34 Mercenary. 01039_ Broken Targeting Computer destroyed. 01039_ System corrupted by crushing effect (+4). 01040_ Slammed into G-34 Mercenary. 01040_ G-34 Mercenary destroyed. [Achievement: Fist Fight] 01047_ Slammed into G-47 Trooper. 01057_ Broken Lgt. Cannon destroyed. 01057_ System corrupted by crushing effect (+2). 01058_ Slammed into G-47 Trooper. 01060_ Slammed into G-34 Mercenary. 01060_ Broken Lgt. Cannon destroyed. 01061_ Slammed into G-34 Mercenary. 01062_ P8HPGQO%YKOH0J1WLO YAEG70SRHMYN|K 01062_ Slammed into G-34 Mercenary. Map ----- +----------------------------------------------------+ | | | | | | | | | | | | | | | | | | | | | | | | | | | | | ???????????????????????????????????? | | ???????????????????????????????????? | | ?????????#######????????????????#### | | ????????## ##??????????????## | | ????????# #??????????????# | | ????????# #??????????????# # | | ?????????# %%%%#??????????????####? | | ??????????#%%%%%#???###????????????# | | ??????????##%%%##???# ##??????????# | | ???????????##%######## #######????# | | ?????########%g%%%%%## ##???# | | ?????#%%%%g@%%#####%### ##### | | ?????#%########???#%#?### | | ???###%#######????#%#???## | | ???# %% #????#%#????######## ## | | ???# """ """ #????#%#???????????# #? | | ???# """ """ #????#%############# #? | | ???# " """ #????#=* #? | | ???# #????####### #########? | | ???#T#### ###??????????# #????????? | | ???###??# #????????????# #????????? | | ????????# #?????????#### #????????? | | ????????# #?????????# #????????? | | ????????# ########??# ####????????? | | ????????# #??# #???????????? | | ????????# #??# #######?????? | | ????????######## #??# #?????? | | ??????????????## ##?# ##### #?????? | | ??????????????# ### #???????????? | | ?????????????## ##??????????? | | ?????????????# ##????###### | | ?????????????# #?# | | ?????????????## #????###### | | ??????????????## #?????##### | | ???????????????## #?????# | | ????????????????# #????# ### | +----------------------------------------------------+ Best States ------------- Heat Dissipation 25 Energy Generation 10 Energy Capacity 125 Matter Stores 300 Matter Capacity 300 Sight Range 16 Terrain Scan Density 10 Evasion (%) 62 Targeting Accuracy 10 Item Schematics ----------------- None Robot Schematics ------------------ None Fabricated ------------ Nothing Alien Tech Used ----------------- None Achievements -------------- Collateral Damage Fist Fight Challenges ------------ None Game ------ Seed CloakRefineryStripper Manual? 0 Play Time 00:12:16 Cumulative 34.0 hours Start 2023.12.17 @ 06:19:07 End 2023.12.17 @ 06:28:43 Sessions 1 Manual Loads 0 Difficulty Rogue Special Mode None Game No. 22 Rogue 22 Adventurer 0 Explorer 0 Win Type - Total 0 Types 0/0/0/0/0/0/0/0/0 Lore% 24 Gallery% 32 Achievement% 31 Wizard Run 0 Options --------- ASCII 0 Keyboard 1 Movement Arrows Keybinds 0 Fullscreen 1 Font 12/Proggy Map View 83x54 Tactical HUD 1 Map Filters NONE Filters NONE Steam 0 RUN: 9479cae9-1272-4a69-97c5-2c0f19fa04e5